fUSD/lending_fUSD_20250107
["ID","MTS","AMOUNT","RATE_DAILY","PERIOD"]
[348023783,1736268677282,-824.34,0.00011238,2]
[348023784,1736268677291,-500.0,0.00011238,2]
[348023785,1736268677300,-557.29,0.00011238,2]
[348023786,1736268677310,-1090.09,0.00011238,2]
[348023787,1736268677319,-663.62,0.00011238,2]
[348023788,1736268677329,-557.55,0.00011238,2]
[348023789,1736268677339,-500.0,0.00011238,2]
[348023790,1736268677349,-500.0,0.00011238,2]
[348023791,1736268677359,-500.0,0.00011238,2]
[348023792,1736268677369,-1547.89,0.00011238,2]
[348023793,1736268677379,-500.0,0.00011238,2]
[348023794,1736268677388,-913.99,0.00011238,2]
[348023795,1736268677397,-500.0,0.00011238,2]
[348023796,1736268677407,-500.0,0.00011238,2]
[348023797,1736268677416,-582.8,0.00011238,2]
[348023798,1736268677426,-500.0,0.00011238,2]
[348023799,1736268677438,-735.69,0.00011238,2]
[348023800,1736268677448,-500.0,0.00011238,2]
[348023801,1736268677458,-548.74,0.00011238,2]
[348023802,1736268677467,-567.82,0.00011238,2]
[348023803,1736268677476,-609.14,0.00011238,2]
[348023804,1736268677488,-853.91,0.00011238,2]
[348023805,1736268677498,-500.0,0.00011238,2]
[348023806,1736268677508,-500.0,0.00011238,2]
[348023807,1736268677517,-553.12,0.00011238,2]
[348023808,1736268677527,-863.2,0.00011238,2]
[348023809,1736268677537,-1230.46,0.00011238,2]
[348023810,1736268677546,-531.05,0.00011238,2]
[348023811,1736268677556,-500.0,0.00011238,2]
[348023812,1736268677566,-500.0,0.00011238,2]
[348023813,1736268677575,-643.07399933,0.00011238,2]
[348023814,1736268677585,-773.27,0.00011238,2]
[348023815,1736268677596,-831.05,0.00011238,2]
[348023816,1736268677606,-2392.33,0.00011238,2]
[348023817,1736268677616,-514.77,0.00011238,2]
[348023818,1736268677626,-912.02,0.00011238,2]
[348023819,1736268677637,-1029.27,0.00011238,2]
[348023820,1736268677648,-1494.48,0.00011238,2]
[348023821,1736268677657,-1004.88,0.00011238,2]
[348023822,1736268677667,-858.75,0.00011238,2]
[348023823,1736268677677,-500.0,0.00011238,2]
[348023824,1736268677687,-2127.93,0.00011238,2]
[348023825,1736268677696,-1358.1,0.00011238,2]
[348023826,1736268677705,-2342.11,0.00011238,2]
[348023827,1736268677715,-539.24,0.00011238,2]
[348023828,1736268677725,-609.78,0.00011238,2]
[348023829,1736268677734,-1333.64,0.00011238,2]
[348023830,1736268677744,-2822.03,0.00011238,2]
[348023831,1736268677754,-602.54,0.00011238,2]
[348023832,1736268677766,-1190.44,0.00011238,2]
[348023833,1736268677777,-500.0,0.00011238,2]
[348023834,1736268677788,-793.26,0.00011238,2]
[348023835,1736268677798,-1051.54,0.00011238,2]
[348023836,1736268677808,-1546.56,0.00011238,2]
[348023837,1736268677817,-722.34,0.00011238,2]
[348023838,1736268677827,-1149.51,0.00011238,2]
[348023839,1736268677836,-1887.44,0.00011238,2]
[348023840,1736268677846,-865.45,0.00011238,2]
[348023841,1736268677856,-500.0,0.00011238,2]
[348023842,1736268677866,-807.88,0.00011238,2]
[348023843,1736268677876,-910.92,0.00011238,2]
[348023844,1736268677887,-500.0,0.00011238,2]
[348023845,1736268677897,-500.0,0.00011238,2]
[348023846,1736268677907,-1777.29,0.00011238,2]
[348023847,1736268677916,-290.19006291,0.00011238,2]
[348023848,1736268677926,-5860.4,0.00011238,2]
[348023849,1736268677936,-500.0,0.00011238,2]
[348023850,1736268677945,-757.84,0.00011238,2]
[348023851,1736268677955,-706.99,0.00011238,2]
[348023852,1736268677965,-500.0,0.00011238,2]
[348023853,1736268677975,-1001.12,0.00011238,2]
[348023854,1736268677987,-218.463418,0.00011238,2]
[348023855,1736268677997,-2561.02,0.00011238,2]
[348023856,1736268678007,-500.0,0.00011238,2]
[348023857,1736268678016,-1084.58,0.00011238,2]
[348023858,1736268678026,-4263.82,0.00011238,2]
[348023859,1736268678037,-1460.17,0.00011238,2]
[348023860,1736268678047,-500.0,0.00011238,2]
[348023861,1736268678057,-1616.76,0.00011238,2]
[348023862,1736268678067,-233.574732,0.00011238,2]
[348023863,1736268678077,-2923.63,0.00011238,2]
[348023864,1736268678088,-1003.09,0.00011238,2]
[348023865,1736268678099,-942.56,0.00011238,2]
[348023866,1736268678109,-592.62,0.00011238,2]
[348023867,1736268678120,-500.0,0.00011238,2]
[348023868,1736268678130,-2206.35,0.00011238,2]
[348023869,1736268678140,-1217.32,0.00011238,2]
[348023870,1736268678149,-500.0,0.00011238,2]
[348023871,1736268678160,-4714.17,0.00011238,2]
[348023872,1736268678170,-4374.14,0.00011238,2]
[348023873,1736268678180,-500.0,0.00011238,2]
[348023874,1736268678189,-779.65,0.00011238,2]
[348023875,1736268678199,-544.8,0.00011238,2]
[348023876,1736268678209,-2901.84,0.00011238,2]
[348023877,1736268678220,-794.55,0.00011238,2]
[348023878,1736268678230,-884.2,0.00011238,2]
[348023879,1736268678243,-2312.21,0.00011238,2]
[348023880,1736268678254,-500.0,0.00011238,2]
[348023881,1736268678264,-1059.63,0.00011238,2]
[348023882,1736268678273,-779.93,0.00011238,2]
[348023883,1736268678283,-500.0,0.00011238,2]
[348023884,1736268678293,-500.0,0.00011238,2]
[348023885,1736268678303,-500.0,0.00011238,2]
[348023886,1736268678313,-604.36,0.00011238,2]
[348023887,1736268678323,-1153.17,0.00011238,2]
[348023888,1736268678334,-1870.96,0.00011238,2]
[348023889,1736268678344,-559.47,0.00011238,2]
[348023890,1736268678354,-782.74,0.00011238,2]
[348023891,1736268678365,-500.0,0.00011238,2]
[348023892,1736268678375,-595.86,0.00011238,2]
[348023893,1736268678384,-1083.61,0.00011238,2]
[348023894,1736268678394,-500.0,0.00011238,2]
[348023895,1736268678405,-1115.91,0.00011238,2]
[348023896,1736268678415,-715.2,0.00011238,2]
[348023897,1736268678425,-500.0,0.00011238,2]
[348023898,1736268678435,-181.36,0.00011238,2]
[348023899,1736268678445,-818.1,0.00011238,2]
[348023900,1736268678455,-500.0,0.00011239,2]
[348023901,1736268678466,-500.0,0.00011239,2]
[348023902,1736268678476,-500.0,0.00011239,2]
[348023903,1736268678488,-333.18767137,0.00011239,2]
[348023904,1736268678497,-500.0,0.00011239,2]
[348023905,1736268678508,-500.0,0.00011239,2]
[348023906,1736268678519,-533.91,0.00011239,2]
[348023907,1736268678529,-500.0,0.00011239,2]
[348023908,1736268678539,-500.0,0.00011239,2]
[348023909,1736268678552,-317.68973873,0.00011239,2]
[348023910,1736268678563,-500.0,0.00011239,2]
[348023911,1736268678573,-500.0,0.00011239,2]
[348023912,1736268678583,-500.0,0.00011239,2]
[348023913,1736268678594,-500.0,0.00011239,2]
[348023914,1736268678604,-500.0,0.00011239,2]
[348023915,1736268678614,-500.0,0.00011239,2]
[348023916,1736268678625,-500.0,0.00011239,2]
[348023917,1736268678635,-500.0,0.00011239,2]
[348023918,1736268678645,-500.0,0.00011239,2]
[348023919,1736268678655,-538.96,0.00011239,2]
[348023920,1736268678666,-500.0,0.00011239,2]
[348023921,1736268678676,-500.0,0.00011239,2]
[348023922,1736268678686,-500.0,0.00011239,2]
[348023923,1736268678696,-500.0,0.00011239,2]
[348023924,1736268678707,-500.0,0.00011239,2]
[348023925,1736268678717,-845.74,0.00011239,2]
[348023926,1736268678727,-500.0,0.00011239,2]
[348023927,1736268678738,-500.0,0.00011239,2]
[348023928,1736268678748,-500.0,0.00011239,2]
[348023929,1736268678759,-592.86,0.00011239,2]
[348023930,1736268678770,-408.86,0.00011239,2]
[348023931,1736268678780,-600.81,0.00011239,2]
[348023932,1736268678791,-429.95990623,0.00011239,2]
[348023933,1736268678801,-500.0,0.00011239,2]
[348023934,1736268678811,-519.72,0.00011239,2]
[348023935,1736268678821,-500.0,0.00011239,2]
[348023936,1736268678831,-819.07,0.00011239,2]
[348023937,1736268678841,-500.0,0.00011239,2]
[348023938,1736268678851,-518.34,0.00011239,2]
[348023939,1736268678861,-616.88,0.00011239,2]
[348023940,1736268678871,-500.0,0.00011239,2]
[348023941,1736268678881,-500.0,0.00011239,2]
[348023942,1736268678891,-622.89,0.00011239,2]
[348023943,1736268678901,-500.0,0.00011239,2]
[348023944,1736268678911,-500.0,0.00011239,2]
[348023945,1736268678921,-500.0,0.00011239,2]
[348023946,1736268678931,-500.0,0.00011239,2]
[348023947,1736268678942,-500.0,0.00011239,2]
[348023948,1736268678952,-500.0,0.00011239,2]
[348023949,1736268678961,-500.0,0.00011239,2]
[348023950,1736268678971,-500.0,0.00011239,2]
[348023951,1736268678981,-500.0,0.00011239,2]
[348023952,1736268678991,-500.0,0.00011239,2]
[348023953,1736268679001,-870.58,0.00011239,2]
[348023954,1736268679011,-687.56,0.00011239,2]
[348023955,1736268679021,-500.0,0.00011239,2]
[348023956,1736268679031,-791.82,0.00011239,2]
[348023957,1736268679041,-500.0,0.00011239,2]
[348023958,1736268679052,-500.0,0.00011239,2]
[348023959,1736268679062,-500.0,0.00011239,2]
[348023960,1736268679071,-500.0,0.00011239,2]
[348023961,1736268679081,-500.0,0.00011239,2]
[348023962,1736268679091,-927.26,0.00011239,2]
[348023963,1736268679101,-558.34,0.00011239,2]
[348023964,1736268679111,-500.0,0.00011239,2]
[348023965,1736268679121,-500.0,0.00011239,2]
[348023966,1736268679131,-655.3,0.00011239,2]
[348023967,1736268679140,-557.31,0.00011239,2]
[348023968,1736268679150,-656.36,0.00011239,2]
[348023969,1736268679160,-500.0,0.00011239,2]
[348023970,1736268679170,-918.28,0.00011239,2]
[348023971,1736268679181,-582.18,0.00011239,2]
[348023972,1736268679191,-500.0,0.00011239,2]
[348023973,1736268679202,-685.99,0.00011239,2]
[348023974,1736268679212,-500.0,0.00011239,2]
[348023975,1736268679222,-583.44,0.00011239,2]
[348023976,1736268679233,-500.0,0.00011239,2]
[348023977,1736268679244,-641.46,0.00011239,2]
[348023978,1736268679254,-612.42,0.00011239,2]
[348023979,1736268679264,-500.0,0.00011239,2]
[348023980,1736268679275,-520.7,0.00011239,2]
[348023981,1736268679285,-500.0,0.00011239,2]
[348023982,1736268679295,-500.0,0.00011239,2]
[348023983,1736268679305,-500.0,0.00011239,2]
[348023984,1736268679315,-500.0,0.00011239,2]
[348023985,1736268679325,-505.14,0.00011239,2]
[348023986,1736268679335,-500.0,0.00011239,2]
[348023987,1736268679345,-321.72,0.00011239,2]
[348023988,1736268679355,-735.13,0.00011239,2]
[348023989,1736268679365,-500.0,0.00011239,2]
[348023990,1736268679374,-512.9,0.00011239,2]
[348023991,1736268679384,-500.0,0.00011239,2]
[348023992,1736268679394,-500.0,0.00011239,2]
[348023993,1736268679403,-500.0,0.00011239,2]
[348023994,1736268679413,-500.0,0.00011239,2]
[348023995,1736268679422,-500.0,0.00011239,2]
[348023996,1736268679432,-500.0,0.00011239,2]
[348023997,1736268679443,-597.15,0.00011239,2]
[348023998,1736268679453,-921.38,0.00011239,2]
[348023999,1736268679463,-851.41,0.00011239,2]
[348024000,1736268679473,-500.0,0.00011239,2]
[348024001,1736268679484,-500.0,0.00011239,2]
[348024002,1736268679494,-500.0,0.00011239,2]
[348024003,1736268679504,-500.0,0.00011239,2]
[348024004,1736268679514,-500.0,0.00011239,2]
[348024005,1736268679524,-500.0,0.00011239,2]
[348024006,1736268679534,-500.0,0.00011239,2]
[348024007,1736268679544,-500.0,0.00011239,2]
[348024008,1736268679556,-538.02,0.00011239,2]
[348024009,1736268679567,-526.88,0.00011239,2]
[348024010,1736268679576,-969.14,0.00011239,2]
[348024011,1736268679587,-348.01,0.00011239,2]
[348024012,1736268679599,-850.4,0.00011239,2]
[348024013,1736268679610,-500.0,0.00011239,2]
[348024014,1736268679621,-500.0,0.00011239,2]
[348024015,1736268679634,-500.0,0.00011239,2]
[348024016,1736268679645,-1025.87,0.00011239,2]
[348024017,1736268679656,-500.0,0.00011239,2]
[348024018,1736268679667,-877.47,0.00011239,2]
[348024019,1736268679677,-500.0,0.00011239,2]
[348024020,1736268679687,-500.0,0.00011239,2]
[348024021,1736268679698,-615.53,0.00011239,2]
[348024022,1736268679709,-500.0,0.00011239,2]
[348024023,1736268679718,-500.0,0.00011239,2]
[348024024,1736268679729,-590.64,0.00011239,2]
[348024025,1736268679740,-500.0,0.00011239,2]
[348024026,1736268679751,-500.0,0.00011239,2]
[348024027,1736268679761,-585.59,0.00011239,2]
[348024028,1736268679773,-500.0,0.00011239,2]
[348024029,1736268679783,-646.69,0.00011239,2]
[348024030,1736268679794,-500.0,0.00011239,2]
[348024031,1736268679804,-500.0,0.00011239,2]
[348024032,1736268679815,-1000.0,0.00011301,2]
[348024033,1736268679825,-3816.039,0.00011334,2]
[348024034,1736268679835,-184.972,0.00011334,2]
[348024035,1736268679844,-500.0,0.00011374,2]
[348024036,1736268679855,-8600.0,0.000114,4]
[348024037,1736268679866,-1700.0,0.000115,4]
[348024038,1736268679876,-500.0,0.00011503,2]
[348024039,1736268679886,-500.0,0.00011503,2]
[348024040,1736268679896,-1127.29,0.00011504,2]
[348024041,1736268679907,-1080.32,0.00011504,2]
[348024042,1736268679917,-2140.99,0.00011504,2]
[348024043,1736268679927,-1743.43,0.00011504,2]
[348024044,1736268679937,-500.0,0.00011504,2]
[348024045,1736268679947,-3610.9,0.00011504,2]
[348024046,1736268679957,-734.32,0.00011504,2]
[348024047,1736268679967,-500.0,0.00011504,2]
[348024048,1736268679977,-500.0,0.00011504,2]
[348024049,1736268679988,-612.11,0.00011504,2]
[348024050,1736268679998,-500.0,0.00011504,2]
[348024051,1736268680008,-1544.38,0.00011504,2]
[348024052,1736268680018,-850.81,0.00011504,2]
[348024053,1736268680028,-500.0,0.00011504,2]
[348024054,1736268680038,-500.0,0.00011504,2]
[348024055,1736268680048,-662.0,0.00011504,2]
[348024056,1736268680059,-747.67,0.00011504,2]
[348024057,1736268680070,-500.0,0.00011504,2]
[348024058,1736268680256,-772.19,0.00011504,2]
[348024059,1736268680267,-588.87,0.00011504,2]
[348024060,1736268680276,-2961.16,0.00011504,2]
[348024061,1736268680287,-590.95,0.00011504,2]
[348024062,1736268680297,-774.32,0.00011504,2]
[348024063,1736268680307,-655.07,0.00011504,2]
[348024064,1736268680317,-500.0,0.00011504,2]
[348024065,1736268680326,-506.74,0.00011504,2]
[348024066,1736268680335,-958.33,0.00011504,2]
[348024067,1736268680344,-500.0,0.00011504,2]
[348024068,1736268680354,-956.06,0.00011504,2]
[348024069,1736268680364,-503.25,0.00011504,2]
[348024070,1736268680374,-939.96,0.00011504,2]
[348024071,1736268680383,-500.0,0.00011504,2]
[348024072,1736268680392,-1092.85,0.00011504,2]
[348024073,1736268680402,-500.0,0.00011504,2]
[348024074,1736268680412,-1214.95,0.00011504,2]
[348024075,1736268680421,-500.0,0.00011504,2]
[348024076,1736268680431,-623.76,0.00011504,2]
[348024077,1736268680441,-1114.33,0.00011504,2]
[348024078,1736268680451,-500.0,0.00011504,2]
[348024079,1736268680461,-679.63,0.00011504,2]
[348024080,1736268680470,-527.31,0.00011504,2]
[348024081,1736268680480,-1307.24,0.00011504,2]
[348024082,1736268680492,-859.28,0.00011504,2]
[348024083,1736268680501,-1688.86,0.00011504,2]
[348024084,1736268680511,-2597.12,0.00011504,2]
[348024085,1736268680520,-2164.26,0.00011504,2]
[348024086,1736268680530,-917.21,0.00011504,2]
[348024087,1736268680539,-1267.48,0.00011504,2]
[348024088,1736268680549,-5884.97,0.00011504,2]
[348024089,1736268680560,-1401.08,0.00011504,2]
[348024090,1736268680570,-1512.74,0.00011504,2]
[348024091,1736268680579,-886.66,0.00011505,2]
[348024092,1736268680589,-2097.97,0.00011505,2]
[348024093,1736268680599,-500.0,0.00011505,2]
[348024094,1736268680607,-1311.27,0.00011505,2]
[348024095,1736268680617,-1111.46,0.00011505,2]
[348024096,1736268680627,-531.84,0.00011505,2]
[348024097,1736268680636,-2273.0,0.00011505,2]
[348024098,1736268680646,-1028.58,0.00011505,2]
[348024099,1736268680655,-1591.44,0.00011505,2]
[348024100,1736268680665,-997.13,0.00011505,2]
[348024101,1736268680674,-2714.28,0.00011505,2]
[348024102,1736268680683,-1972.55,0.00011505,2]
[348024103,1736268680693,-2751.0,0.00011507,2]
[348024104,1736268680702,-500.0,0.00011511,2]
[348024105,1736268680711,-314.53166519,0.00011511,2]
[348024106,1736268680721,-1321.84,0.00011511,2]
[348024107,1736268680731,-817.02,0.00011511,2]
[348024108,1736268680742,-556.07,0.00011512,2]
[348024109,1736268680752,-850.62,0.00011512,2]
[348024110,1736268680763,-500.0,0.00011512,2]
[348024111,1736268680773,-500.0,0.00011512,2]
[348024112,1736268680783,-590.0,0.00011512,2]
[348024113,1736268680793,-500.0,0.00011512,2]
[348024114,1736268680802,-733.92,0.00011512,2]
[348024115,1736268680812,-836.91,0.00011512,2]
[348024116,1736268680821,-722.53,0.00011512,2]
[348024117,1736268680830,-492.74127182,0.00011512,2]
[348024118,1736268680839,-897.94,0.00011512,2]
[348024119,1736268680849,-500.0,0.00011512,2]
[348024120,1736268680859,-500.0,0.00011512,2]
[348024121,1736268680868,-500.0,0.00011512,2]
[348024122,1736268680877,-500.0,0.00011512,2]
[348024123,1736268680887,-500.0,0.00011512,2]
[348024124,1736268680896,-797.59,0.00011512,2]
[348024125,1736268680904,-593.4,0.00011512,2]
[348024126,1736268680912,-500.0,0.00011512,2]
[348024127,1736268680920,-500.0,0.00011512,2]
[348024128,1736268680928,-910.72,0.00011512,2]
[348024129,1736268680936,-519.37,0.00011512,2]
[348024130,1736268680944,-812.74,0.00011512,2]
[348024131,1736268680953,-446.7573704,0.00011512,2]
[348024132,1736268680962,-531.28,0.00011512,2]
[348024133,1736268680971,-500.0,0.00011512,2]
[348024134,1736268680981,-528.34,0.00011512,2]
[348024135,1736268680993,-1325.98,0.00011512,2]
[348024136,1736268681002,-826.1,0.00011512,2]
[348024137,1736268681011,-500.0,0.00011512,2]
[348024138,1736268681021,-500.0,0.00011512,2]
[348024139,1736268681031,-582.94,0.00011512,2]
[348024140,1736268681040,-960.33,0.00011512,2]
[348024141,1736268681050,-749.9,0.00011512,2]
[348024142,1736268681059,-500.0,0.00011512,2]
[348024143,1736268681069,-824.34,0.00011512,2]
[348024144,1736268681078,-500.0,0.00011512,2]
[348024145,1736268681088,-557.29,0.00011512,2]
[348024146,1736268681098,-1090.09,0.00011512,2]
[348024147,1736268681108,-663.62,0.00011512,2]
[348024148,1736268681117,-557.55,0.00011512,2]
[348024149,1736268681127,-239.31925788,0.00011512,2]
[348024150,1736268681138,-500.0,0.00011512,2]
[348024151,1736268681148,-500.0,0.00011512,2]
[348024152,1736268681157,-1547.89,0.00011512,2]
[348024153,1736268681167,-500.0,0.00011512,2]
[348024154,1736268681178,-913.99,0.00011512,2]
[348024155,1736268681187,-500.0,0.00011512,2]
[348024156,1736268681197,-500.0,0.00011512,2]
[348024157,1736268681207,-582.8,0.00011512,2]
[348024158,1736268681218,-500.0,0.00011512,2]
[348024159,1736268681228,-735.69,0.00011512,2]
[348024160,1736268681238,-500.0,0.00011512,2]
[348024161,1736268681247,-548.74,0.00011512,2]
[348024162,1736268681256,-567.82,0.00011512,2]
[348024163,1736268681266,-609.14,0.00011512,2]
[348024164,1736268681275,-853.91,0.00011512,2]
[348024165,1736268681285,-500.0,0.00011512,2]
[348024166,1736268681294,-500.0,0.00011512,2]
[348024167,1736268681303,-553.12,0.00011512,2]
[348024168,1736268681313,-863.2,0.00011512,2]
[348024169,1736268681322,-1230.46,0.00011512,2]
[348024170,1736268681332,-531.05,0.00011512,2]
[348024171,1736268681342,-500.0,0.00011512,2]
[348024172,1736268681351,-500.0,0.00011512,2]
[348024173,1736268681361,-773.27,0.00011512,2]
[348024174,1736268681370,-831.05,0.00011512,2]
[348024175,1736268681380,-2392.33,0.00011512,2]
[348024176,1736268681389,-514.77,0.00011512,2]
[348024177,1736268681398,-912.02,0.00011512,2]
[348024178,1736268681408,-1029.27,0.00011512,2]
[348024179,1736268681418,-1494.48,0.00011512,2]
[348024180,1736268681427,-1004.88,0.00011512,2]
[348024181,1736268681437,-858.75,0.00011512,2]
[348024182,1736268681446,-500.0,0.00011512,2]
[348024183,1736268681457,-2127.93,0.00011512,2]
[348024184,1736268681468,-1358.1,0.00011512,2]
[348024185,1736268681478,-2342.11,0.00011512,2]
[348024186,1736268681489,-539.24,0.00011512,2]
[348024187,1736268681498,-609.78,0.00011512,2]
[348024188,1736268681508,-1333.64,0.00011512,2]
[348024189,1736268681517,-2822.03,0.00011512,2]
[348024190,1736268681526,-602.54,0.00011512,2]
[348024191,1736268681536,-1190.44,0.00011512,2]
[348024192,1736268681545,-500.0,0.00011512,2]
[348024193,1736268681557,-793.26,0.00011512,2]
[348024194,1736268681567,-1051.54,0.00011512,2]
[348024195,1736268681576,-1546.56,0.00011512,2]
[348024196,1736268681585,-722.34,0.00011512,2]
[348024197,1736268681595,-1149.51,0.00011512,2]
[348024198,1736268681604,-1887.44,0.00011512,2]
[348024199,1736268681614,-865.45,0.00011512,2]
[348024200,1736268681624,-500.0,0.00011512,2]
[348024201,1736268681636,-807.88,0.00011512,2]
[348024202,1736268681646,-910.92,0.00011512,2]
[348024203,1736268681655,-500.0,0.00011512,2]
[348024204,1736268681665,-500.0,0.00011512,2]
[348024205,1736268681675,-1777.29,0.00011512,2]
[348024206,1736268681685,-5860.4,0.00011512,2]
[348024207,1736268681695,-500.0,0.00011512,2]
[348024208,1736268681704,-706.99,0.00011512,2]
[348024209,1736268681714,-757.84,0.00011512,2]
[348024210,1736268681724,-500.0,0.00011512,2]
[348024211,1736268681734,-1001.12,0.00011512,2]
[348024212,1736268681743,-218.463418,0.00011512,2]
[348024213,1736268681753,-2561.02,0.00011512,2]
[348024214,1736268681765,-500.0,0.00011512,2]
[348024215,1736268681777,-1084.58,0.00011512,2]
[348024216,1736268681787,-4263.82,0.00011512,2]
[348024217,1736268681797,-1460.17,0.00011512,2]
[348024218,1736268681807,-500.0,0.00011512,2]
[348024219,1736268681816,-1616.76,0.00011512,2]
[348024220,1736268681826,-233.574732,0.00011512,2]
[348024221,1736268681836,-2923.63,0.00011512,2]
[348024222,1736268681845,-1003.09,0.00011512,2]
[348024223,1736268681854,-942.56,0.00011512,2]
[348024224,1736268681864,-592.62,0.00011512,2]
[348024225,1736268681873,-500.0,0.00011512,2]
[348024226,1736268681883,-2206.35,0.00011512,2]
[348024227,1736268681892,-1217.32,0.00011512,2]
[348024228,1736268681902,-500.0,0.00011512,2]
[348024229,1736268681911,-4714.17,0.00011512,2]
[348024230,1736268681920,-4374.14,0.00011512,2]
[348024231,1736268681930,-500.0,0.00011512,2]
[348024232,1736268681939,-779.65,0.00011512,2]
[348024233,1736268681948,-544.8,0.00011512,2]
[348024234,1736268681957,-2901.84,0.00011512,2]
[348024235,1736268681967,-794.55,0.00011512,2]
[348024236,1736268681976,-884.2,0.00011512,2]
[348024237,1736268681987,-2312.21,0.00011512,2]
[348024238,1736268681996,-500.0,0.00011512,2]
[348024239,1736268682005,-1059.63,0.00011512,2]
[348024240,1736268682015,-779.93,0.00011512,2]
[348024241,1736268682024,-500.0,0.00011512,2]
[348024242,1736268682034,-500.0,0.00011512,2]
[348024243,1736268682043,-629.69257042,0.00011512,2]
[348024244,1736268682052,-604.36,0.00011512,2]
[348024245,1736268682062,-1153.17,0.00011512,2]
[348024246,1736268682071,-1870.96,0.00011512,2]
[348024247,1736268682081,-559.47,0.00011512,2]
[348024248,1736268682090,-782.74,0.00011512,2]
[348024249,1736268682099,-284.01,0.00011512,2]
[348024250,1736268682108,-1083.61,0.00011512,2]
[348024251,1736268682118,-595.86,0.00011512,2]
[348024252,1736268682127,-500.0,0.00011512,2]
[348024253,1736268682136,-1115.91,0.00011512,2]
[348024254,1736268682145,-715.2,0.00011512,2]
[348024255,1736268682154,-500.0,0.00011512,2]
[348024256,1736268682163,-818.1,0.00011512,2]
[348024257,1736268682172,-171.2994457,0.00011513,2]
[348024258,1736268682181,-500.0,0.00011513,2]
[348024259,1736268682190,-500.0,0.00011513,2]
[348024260,1736268682199,-500.0,0.00011513,2]
[348024261,1736268682208,-500.0,0.00011513,2]
[348024262,1736268682217,-533.91,0.00011513,2]
[348024263,1736268682226,-500.0,0.00011513,2]
[348024264,1736268682236,-500.0,0.00011513,2]
[348024265,1736268682245,-500.0,0.00011513,2]
[348024266,1736268682254,-500.0,0.00011513,2]
[348024267,1736268682263,-500.0,0.00011513,2]
[348024268,1736268682272,-500.0,0.00011513,2]
[348024269,1736268682281,-500.0,0.00011513,2]
[348024270,1736268682290,-500.0,0.00011513,2]
[348024271,1736268682299,-500.0,0.00011513,2]
[348024272,1736268682308,-500.0,0.00011513,2]
[348024273,1736268682318,-500.0,0.00011513,2]
[348024274,1736268682327,-538.96,0.00011513,2]
[348024275,1736268682336,-500.0,0.00011513,2]
[348024276,1736268682346,-500.0,0.00011513,2]
[348024277,1736268682355,-500.0,0.00011513,2]
[348024278,1736268682364,-500.0,0.00011513,2]
[348024279,1736268682373,-500.0,0.00011513,2]
[348024280,1736268682382,-845.74,0.00011513,2]
[348024281,1736268682391,-500.0,0.00011513,2]
[348024282,1736268682401,-500.0,0.00011513,2]